fUSD/lending_fUSD_20250410
["ID","MTS","AMOUNT","RATE_DAILY","PERIOD"]
[357632510,1744259432055,-1000.0,0.00019886,2]
[357632511,1744259432065,-500.0,0.00019899,2]
[357632512,1744259432075,-1007.77299094,0.00019899,2]
[357632513,1744259432084,-286.27919819,0.00019899,2]
[357632514,1744259432095,-572.09380181,0.00019899,2]
[357632515,1744259432104,-5307.90619819,0.000199,2]
[357632516,1744259432115,-3550.000005,0.000199,2]
[357632517,1744259432126,-1300.0,0.000199,2]
[357632518,1744259432137,-1537.47542561,0.000199,2]
[357632519,1744259432156,-4193.60662579,0.000199,2]
[357632520,1744259432172,-2609.49592439,0.000199,2]
[357632521,1744259432183,-3119.40152102,0.000199,2]
[357632522,1744259432193,-309.49146826,0.000199,2]
[357632523,1744259432203,-166.77332744,0.000199,2]
[357632524,1744259432212,-1000.0,0.000199,2]
[357632525,1744259432222,-756.2635228,0.000199,2]
[357632526,1744259432231,-168.79838955,0.000199,2]
[357632527,1744259432242,-2500.0,0.000199,2]
[357632528,1744259432252,-2381.65899645,0.000199,2]
[357632529,1744259432264,-3026.40142701,0.000199,2]
[357632530,1744259432273,-326.13881422,0.000199,2]
[357632531,1744259432283,-250.0,0.00019925,2]
[357632532,1744259432293,-250.0,0.00019925,2]
[357632533,1744259432303,-9999.99,0.00019925,2]
[357632534,1744259432312,-242.15,0.00019925,2]
[357632535,1744259432322,-999.99,0.00019925,2]
[357632536,1744259432331,-9999.99,0.00019925,2]
[357632537,1744259432340,-8346.0,0.00019973,2]
[357632538,1744259432350,-500.0,0.00019973,2]
[357632539,1744259432359,-500.0,0.00019973,2]
[357632540,1744259432370,-500.0,0.00019973,2]
[357632542,1744259432379,-1426.52150351,0.00019986,2]
[357632544,1744259432391,-4170.12715053,0.00019986,2]
[357632547,1744259432411,-517.891,0.00019986,2]
[357632551,1744259432434,-877.93975606,0.00019986,2]
[357632553,1744259432444,-2244.31354394,0.00019986,2]
[357632554,1744259432455,-377.96826556,0.00019986,2]
[357632555,1744259432465,-907.84376497,0.00019986,2]
[357632556,1744259432477,-1953.53420843,0.00019986,2]
[357632557,1744259432486,-33148.5299458,0.00019986,2]
[357632558,1744259432495,-1272.9790958,0.00019986,2]
[357632559,1744259432504,-54755.8478584,0.00019986,2]
[357632560,1744259432514,-200.0,0.00019988,2]
[357632561,1744259432523,-191.68121923,0.0001999,2]
[357632562,1744259432532,-337.49,0.00019997,2]
[357632563,1744259432542,-300.0,0.00019999,2]
[357632564,1744259432551,-1273.0,0.0002,2]
[357632565,1744259432561,-109080.82603119,0.0002,2]
[357632566,1744259432572,-49714.81359606,0.0002,2]
[357632567,1744259432595,-43010.79713,0.0002,2]
[357632575,1744259438003,-5024.3311335,0.00019986,2]
[357632576,1744259438013,-33476.35280535,0.0002,2]
[357632577,1744259438179,-1771.25319966,0.0002,2]
[357632677,1744259440711,-1240.0,0.0002,2]
[357632678,1744259440720,-4046.64349817,0.0002,2]
[357632679,1744259440739,-80273.45250442,0.0002,2]
[357632680,1744259440860,-318.57896152,0.0002,2]
[357632692,1744259443207,-967.66722004,0.0002,2]
[357632712,1744259446191,-1334.635,0.00019753,2]
[357632713,1744259446200,-783.201012,0.0002,2]
[357632714,1744259446213,-331.798988,0.0002,2]
[357632715,1744259446222,-13159.84605991,0.0002,2]
[357632716,1744259446234,-31833.5282024,0.0002,2]
[357632717,1744259446255,-259.43931699,0.0002,2]
[357632721,1744259990659,1515.47,0.00013699,2]
[357632722,1744259991578,1515.47,0.00013699,2]
[357632723,1744259991923,1515.47,0.00013699,2]
[357632724,1744259992478,1515.47,0.00013699,2]
[357632725,1744259992609,1515.47,0.00013699,2]
[357632726,1744259993022,1515.47,0.00013699,2]
[357632727,1744259993413,1515.47,0.00013699,2]
[357632728,1744259993792,1515.47,0.00013699,2]
[357632729,1744259994819,300.0,0.00013699,2]
[357632730,1744259994845,1215.47,0.00013699,2]
[357632731,1744259995705,1515.47,0.00013699,2]
[357632732,1744259996152,1515.47,0.00013699,2]
[357632733,1744259996770,1515.47,0.00013699,2]
[357632734,1744259996833,1515.47,0.00013699,2]
[357632735,1744259997148,1515.47,0.00013699,2]
[357632736,1744259997541,1515.47,0.00013699,2]
[357632737,1744259998069,1515.47,0.00013699,2]
[357632738,1744259998463,1515.47,0.00013699,2]
[357632739,1744259999885,1515.47,0.00013699,2]
[357632740,1744260000302,1515.47,0.00013699,2]
[357632741,1744260000598,1515.50937497,0.00013699,2]
[357632742,1744260186267,500.0,0.00032,120]
[357632743,1744260199081,512.73616798,0.00032,120]
[357632744,1744260315411,252.0,0.0001,2]
[357632745,1744260444174,-500.0,0.00016356,2]
[357632746,1744260444196,-802.21,0.00016957,2]
[357632747,1744260444218,-160.0,0.00017753,2]
[357632748,1744260444238,-500.0,0.00018712,2]
[357632749,1744260444261,-23900.0,0.00018835,2]
[357632750,1744260444282,-1793.72,0.00018836,2]
[357632751,1744260444304,-168.74,0.00018845,2]
[357632752,1744260444326,-1000.0,0.00018872,2]
[357632753,1744260444348,-457.95,0.00018888,2]
[357632754,1744260444368,-150.99,0.00018888,2]
[357632755,1744260444393,-500.0,0.00019,7]
[357632756,1744260444414,-500.0,0.00019,7]
[357632757,1744260444435,-500.0,0.00019,7]
[357632758,1744260444457,-302.89,0.00019,7]
[357632759,1744260444479,-250.0,0.00019,2]
[357632760,1744260444503,-802.21,0.00019221,2]
[357632761,1744260444524,-63.53928236,0.00019294,2]
[357632763,1744260632183,-200.0,0.0001889,7]
[357632764,1744260632192,-250.0,0.00018892,2]
[357632765,1744260632201,-136.46071764,0.00019294,2]
[357632766,1744260632210,-27.17879052,0.00019399,2]
[357632767,1744260632238,-2042.33592648,0.00019399,2]
[357632768,1744260632246,-150.0,0.00019733,2]
[357632769,1744260632256,-1000.0,0.00019738,2]
[357632770,1744260632265,-150.0,0.0001974,2]
[357632771,1744260632274,-200.0,0.00019741,2]
[357632772,1744260632283,-150.0,0.00019743,2]
[357632773,1744260632292,-864.12710413,0.00019752,2]
[357632774,1744260632301,-300.0,0.00019752,2]
[357632775,1744260632310,-575.0,0.00019753,2]
[357632776,1744260632319,-612.20779034,0.00019753,2]
[357632777,1744260632331,-1432.79220966,0.00019753,2]
[357632778,1744260632340,-1294.644,0.00019753,2]
[357632779,1744260632350,-1326.0,0.00019753,2]
[357632780,1744260632359,-1121.0,0.00019753,2]
[357632781,1744260632367,-791.0,0.00019753,2]
[357632782,1744260632377,-1284.106,0.00019753,2]
[357632783,1744260632386,-907.0,0.00019753,2]
[357632784,1744260632395,-1437.0,0.00019753,2]
[357632785,1744260632404,-4161.327,0.00019753,2]
[357632786,1744260632414,-624.624,0.00019753,2]
[357632787,1744260632423,-250.0,0.00019753,2]
[357632788,1744260632432,-3960.0,0.00019753,2]
[357632789,1744260632441,-272.962,0.00019753,2]
[357632790,1744260632450,-858.14,0.00019753,2]
[357632791,1744260632460,-1000.0,0.00019765,2]
[357632792,1744260632470,-150.0,0.00019777,2]
[357632793,1744260632479,-150.0,0.00019779,2]
[357632794,1744260632489,-686.698,0.00019783,2]
[357632795,1744260632499,-1000.0,0.00019783,2]
[357632796,1744260632508,-1000.0,0.00019794,2]
[357632797,1744260632517,-1000.0,0.00019794,2]
[357632798,1744260632526,-150.0,0.00019796,2]
[357632799,1744260632535,-150.0,0.000198,2]
[357632800,1744260632544,-150.0,0.00019802,2]
[357632801,1744260632555,-150.0,0.00019807,2]
[357632802,1744260632565,-150.0,0.00019809,2]
[357632803,1744260632575,-187.36489336,0.0001982,2]
[357632804,1744260632584,-1000.0,0.00019821,2]
[357632805,1744260632593,-150.0,0.00019822,2]
[357632806,1744260632602,-150.0,0.00019825,2]
[357632807,1744260632611,-150.0,0.00019825,2]
[357632808,1744260632621,-1000.0,0.00019828,2]
[357632809,1744260632631,-150.0,0.00019831,2]
[357632810,1744260632641,-150.0,0.00019836,2]
[357632811,1744260632650,-150.0,0.00019847,2]
[357632812,1744260632660,-150.0,0.00019849,2]
[357632813,1744260632670,-150.0,0.00019851,2]
[357632814,1744260632679,-150.0,0.00019856,2]
[357632815,1744260632687,-150.0,0.00019858,2]
[357632816,1744260632696,-1000.0,0.00019858,2]
[357632817,1744260632705,-1000.0,0.00019861,2]
[357632818,1744260632714,-150.0,0.00019866,2]
[357632819,1744260632723,-150.0,0.00019873,2]
[357632820,1744260632732,-150.0,0.00019874,2]
[357632821,1744260632742,-150.0,0.00019878,2]
[357632822,1744260632751,-1093.79716108,0.00019883,2]
[357632823,1744260632763,-150.0,0.00019884,2]
[357632824,1744260632772,-150.0,0.00019886,2]
[357632825,1744260632781,-1000.0,0.00019886,2]
[357632826,1744260632790,-3123.9028,0.00019886,2]
[357632827,1744260632799,-150.0,0.00019893,2]
[357632828,1744260632808,-500.0,0.000199,2]
[357632829,1744260632817,-37197.0127,0.000199,2]
[357632830,1744260632826,-881.5296,0.000199,2]
[357632831,1744260632835,-281.35743001,0.000199,2]
[357632832,1744260632845,-150.0,0.000199,2]
[357632833,1744260632854,-5.84178891,0.000199,2]
[357632859,1744260633595,-503.48436925,0.000199,2]
[357632863,1744260638264,-151.0,0.00019753,2]
[357632864,1744260638280,-120.89344419,0.000199,2]
[357632865,1744260638295,-168.79838955,0.000199,2]
[357632866,1744260638312,-1000.0,0.000199,2]
[357632867,1744260638327,-2500.0,0.000199,2]
[357632868,1744260638343,-150.0,0.00019904,2]
[357632869,1744260638358,-150.0,0.00019909,2]
[357632870,1744260638373,-1000.0,0.00019924,2]
[357632871,1744260638389,-150.0,0.00019925,2]
[357632872,1744260638404,-150.0,0.0001993,2]
[357632873,1744260638419,-1000.0,0.00019933,2]
[357632874,1744260638434,-150.0,0.00019939,2]
[357632875,1744260638449,-150.0,0.00019943,2]
[357632876,1744260638465,-150.0,0.00019947,2]
[357632877,1744260638481,-1000.0,0.00019951,2]
[357632878,1744260638497,-150.0,0.00019952,2]
[357632879,1744260638512,-1000.0,0.00019968,2]
[357632880,1744260638528,-347.0,0.00019973,2]
[357632882,1744260638543,-500.0,0.00019973,2]
[357632884,1744260638561,-500.0,0.00019973,2]
[357632887,1744260638576,-513.37243021,0.00019973,2]
[357632889,1744260638592,-150.0,0.00019974,2]
[357632891,1744260638609,-817.27366298,0.00019981,2]
[357632892,1744260638625,-150.0,0.00019983,2]
[357632893,1744260638641,-177.5960962,0.00019985,2]
[357632894,1744260638656,-169.10217279,0.00019985,2]
[357632895,1744260638671,-7400.37249,0.00019986,2]
[357632896,1744260638687,-30086.68848853,0.00019986,2]
[357632897,1744260638705,-830.49,0.00019986,2]
[357632898,1744260638742,-431.13571938,0.00019986,2]
[357632900,1744260638787,-46413.39319629,0.00019986,2]
[357632901,1744260638803,-3822.4008484,0.00019986,2]
[357632902,1744260638818,-150.0,0.00019994,2]
[357632903,1744260638834,-150.0,0.00019995,2]
[357632904,1744260638849,-150.0,0.00019995,2]
[357632905,1744260638864,-150.0,0.00019996,2]
[357632906,1744260638879,-300.0,0.00019999,2]
[357632907,1744260638894,-311.01619237,0.00019999,2]
[357632908,1744260638909,-1003.0,0.0002,2]
[357632909,1744260638924,-178034.47710623,0.0002,2]
[357632910,1744260638942,-4652.6525961,0.0002,2]
[357632911,1744260638968,-1842.63719334,0.0002,2]
[357632912,1744260638986,-10233.470495,0.0002,2]
[357632917,1744260640583,-1793.71701524,0.0002,2]
[357632918,1744260640655,-1501.55094476,0.0002,2]
[357632919,1744260640805,-57004.01579679,0.0002,2]
[357632920,1744260640817,-2975.51697836,0.0002,2]
[357632921,1744260640828,-415.45101201,0.0002,2]
[357632922,1744260640839,-8139.85439083,0.0002,2]
[357632927,1744260643186,-237.0,0.00019753,2]
[357632928,1744260643196,-18208.14141303,0.0002,2]
[357632953,1744260646242,-707.05999661,0.0002,2]
[357633036,1744261212911,2008.0,0.00032,120]
[357633037,1744261323122,500.0,0.00032,120]
[357633038,1744261334107,500.0,0.00032,120]
[357633039,1744261340345,500.0,0.00032,120]
[357633040,1744261368205,500.0,0.00032,120]
[357633041,1744261504045,500.0,0.00032,120]
[357633042,1744261510762,500.0,0.00032,120]
[357633043,1744261513135,507.89773,0.00032,120]
[357633044,1744261519553,500.0,0.00031,120]
[357633045,1744261534317,508.05161625,0.00032,120]
[357633046,1744261645134,-769.84,0.00018006,2]
[357633047,1744261645156,-250.0,0.00018706,2]
[357633048,1744261645178,-200.0,0.00018752,7]
[357633049,1744261645200,-1746.83245833,0.00018773,2]
[357633050,1744261645222,-252.81,0.00018774,2]
[357633051,1744261645245,-14981.16110169,0.00018854,2]
[357633052,1744261687748,309.12,0.000305,60]
[357633054,1744261811550,3960.0,0.00017775,2]
[357633055,1744261817062,852.0,0.00017775,2]
[357633056,1744261823225,151.0,0.00017775,2]
[357633057,1744261832308,-237.95688344,0.00018773,2]
[357633058,1744261832318,-247.16,0.00018775,2]
[357633059,1744261832327,-5879.19761295,0.00018854,2]
[357633060,1744261832444,-1349.00852206,0.00018854,2]
[357633061,1744261832476,-1690.6327633,0.00018854,2]
[357633062,1744261832486,-12962.24,0.00018897,2]
[357633063,1744261832496,-1000.0,0.00018942,2]
[357633064,1744261832505,-815.76,0.00018943,2]
[357633065,1744261832515,-783.0,0.00018999,2]
[357633066,1744261832525,-21212.87207541,0.00019,2]
[357633067,1744261832535,-250.0,0.00019,2]
[357633068,1744261832544,-200.0,0.00019105,2]
[357633069,1744261832553,-160.42,0.00019202,2]
[357633070,1744261832563,-237.95688342,0.00019213,2]
[357633071,1744261832572,-160.42,0.0001925,2]
[357633072,1744261832582,-160.42,0.00019298,2]
[357633073,1744261832591,-150.99,0.00019339,2]
[357633074,1744261832601,-1552.1360377,0.00019399,2]
[357633075,1744261832610,-1901.83,0.00019478,2]
[357633076,1744261832620,-237.95688342,0.00019653,2]
[357633077,1744261832633,-159.706,0.00019753,2]
[357633078,1744261832642,-150.304,0.00019753,2]
[357633080,1744261832651,-150.678,0.00019753,2]
[357633082,1744261832661,-575.0,0.00019753,2]
[357633083,1744261832670,-2045.0,0.00019753,2]
[357633085,1744261832680,-1286.0,0.00019753,2]
[357633087,1744261832689,-1334.635,0.00019753,2]
[357633089,1744261832700,-791.0,0.00019753,2]
[357633091,1744261832710,-1437.0,0.00019753,2]
[357633093,1744261832719,-1278.0,0.00019753,2]
[357633095,1744261832729,-907.0,0.00019753,2]
[357633097,1744261832739,-4144.0,0.00019753,2]
[357633099,1744261832750,-544.0,0.00019753,2]
[357633101,1744261832760,-2581.6221,0.000198,2]
[357633103,1744261832770,-11748.62433812,0.0001981,2]
[357633105,1744261832780,-200.0,0.0001984,2]
[357633107,1744261832790,-168.71222951,0.00019886,2]
[357633109,1744261832799,-6268.6552,0.00019886,2]
[357633111,1744261832810,-888.4365,0.00019886,2]
[357633113,1744261832819,-211.90623802,0.00019899,2]
[357633115,1744261832829,-835.826,0.00019899,2]
[357633117,1744261832839,-500.0,0.000199,2]
[357633119,1744261832849,-37197.0127,0.000199,2]
[357633121,1744261832860,-431.1371,0.000199,2]
[357633123,1744261832870,-1000.0,0.000199,2]
[357633125,1744261832880,-806.6104,0.000199,2]
[357633126,1744261832890,-7309.4475,0.000199,2]
[357633128,1744261832900,-2282.586,0.000199,2]
[357633130,1744261832910,-264.62486962,0.000199,2]
[357633132,1744261832919,-1000.0,0.000199,2]
[357633134,1744261832929,-2500.0,0.000199,2]
[357633136,1744261832944,-254.76115165,0.000199,2]
[357633138,1744261832954,-168.97282527,0.000199,2]
[357633140,1744261832964,-350.45,0.00019919,2]
[357633142,1744261832975,-184.97,0.00019935,2]
[357633144,1744261832985,-506.75951915,0.00019973,2]
[357633146,1744261832994,-502.14122471,0.00019973,2]
[357633148,1744261833003,-171.5919177,0.00019973,2]
[357633173,1744261833258,-500.0,0.00019973,2]
[357633174,1744261833268,-301.40419837,0.00019973,2]
[357633176,1744261833279,-5636.1578066,0.00019986,2]
[357633178,1744261833289,-59223.6748657,0.00019986,2]
[357633180,1744261833300,-2914.3056847,0.00019986,2]
[357633182,1744261833310,-770.38794488,0.00019986,2]
[357633184,1744261833319,-200.0,0.00019988,2]
[357633186,1744261833329,-260.56006247,0.0001999,2]
[357633188,1744261833339,-1334.0,0.0002,2]
[357633190,1744261833348,-350153.76184982,0.0002,2]
[357633192,1744261833361,-417.1601092,0.0002,2]
[357633194,1744261833373,-1926.7363144,0.0002,2]
[357633215,1744261836597,1121.0,0.00017775,2]
[357633227,1744261838413,-177075.16756676,0.0002,2]
[357633228,1744261838466,-419.229999,0.0002,2]
[357633229,1744261838526,-5799.06923783,0.0002,2]
[357633230,1744261838537,-25005.42878429,0.0002,2]
[357633231,1744261838589,-600.49317362,0.0002,2]
[357633232,1744261838691,-18454.65354482,0.0002,2]
[357633268,1744261840632,-3583.06796825,0.0002,2]
[357633276,1744261840701,-2022.29312643,0.0002,2]
[357633277,1744261840713,-2553.551,0.0002,2]
[357633278,1744261840725,-820.015,0.0002,2]
[357633279,1744261840736,-435.38038272,0.0002,2]
[357633280,1744261840748,-4863.40739997,0.0002,2]
[357633291,1744261840854,-1334.80323733,0.0002,2]
[357633397,1744261843544,-1199.0,0.0002,2]
[357633398,1744261843554,-44355.53324186,0.0002,2]
[357633399,1744261843600,-5896.48145681,0.0002,2]
[357633400,1744261844322,-439.84539973,0.0002,2]
[357633406,1744261846459,-30263.915951,0.0002,2]
[357633407,1744261846615,-832.193085,0.0002,2]
[357633408,1744261846627,-784.9815,0.0002,2]
[357633409,1744261846638,-1414.157248,0.0002,2]
[357633410,1744261846650,-545.152395,0.0002,2]
[357633411,1744261846662,-877.62151405,0.0002,2]
[357633412,1744261846674,-472.95900005,0.0002,2]
[357633413,1744261846686,-868.354,0.0002,2]
[357633463,1744262232965,-418.17546534,0.00043107,120]
[357633464,1744262232991,-50000.0,0.00043107,30]
[357633465,1744262233018,-50000.0,0.00043107,31]
[357633466,1744262233045,-50000.0,0.00043107,32]
[357633467,1744262233074,-50000.0,0.00043107,33]
[357633468,1744262233100,-50000.0,0.00043107,34]
[357633469,1744262233126,-1000.0,0.00043107,30]
[357633470,1744262233151,-972.0,0.00043107,120]
[357633471,1744262233176,-206.3,0.00043107,30]
[357633472,1744262233200,-209.0,0.00043107,120]
[357633473,1744262233225,-192.0757526,0.00043107,60]
[357633474,1744262233250,-1099.21207277,0.00043107,120]
[357633475,1744262233275,-6142.0,0.00043107,30]
[357633476,1744262233299,-6770.0,0.00043107,30]
[357633477,1744262233324,-152.04387883,0.00043107,72]
[357633478,1744262233349,-756.91221056,0.00043107,60]
[357633479,1744262233374,-291.59150735,0.00043107,90]
[357633480,1744262233398,-174.07591671,0.00043107,30]
[357633481,1744262233426,-207.47551253,0.00043107,120]
[357633482,1744262233451,-215.47850318,0.00043107,30]
[357633483,1744262233476,-286.77284948,0.00043107,120]
[357633484,1744262233502,-288.2134857,0.00043107,120]
[357633485,1744262233527,-213.66764596,0.00043107,30]
[357633486,1744262233553,-660.30004066,0.00043107,30]
[357633487,1744262233578,-4088.03963725,0.00043107,120]
[357633488,1744262233602,-565.64,0.00043107,120]
[357633489,1744262233626,-1067.0,0.00043107,30]
[357633490,1744262233650,-1067.0,0.00043107,30]
[357633491,1744262233673,-1067.0,0.00043107,30]
[357633492,1744262233698,-1076.21097325,0.00043107,30]
[357633493,1744262233721,-582.2243143,0.00043107,30]
[357633494,1744262233756,-510.60381512,0.00043107,120]
[357633495,1744262233783,-188.72994938,0.00043107,120]
[357633496,1744262233809,-151.31628455,0.00043107,120]
[357633497,1744262233834,-2482810.5252313,0.00043107,30]
[357633498,1744262233859,-5000.0,0.00043107,90]
[357633499,1744262233885,-5135.8,0.00043107,90]
[357633500,1744262233912,-2657.0,0.00043107,60]
[357633501,1744262233938,-150.0,0.00043107,120]
[357633502,1744262248972,-173.09,0.00032,30]
[357633503,1744262248997,-162.84549769,0.00032,120]
[357633504,1744262249021,-205.3645,0.000323,120]
[357633505,1744262249046,-1000.0,0.00032384,120]
[357633506,1744262249074,-1000.0,0.00032438,120]
[357633507,1744262249100,-1000.0,0.00032493,120]
[357633508,1744262249127,-1000.0,0.00032548,120]
[357633509,1744262249154,-1000.0,0.00032603,120]
[357633510,1744262249179,-1000.0,0.00032658,120]
[357633511,1744262249202,-1000.0,0.00032712,120]
[357633512,1744262249226,-1000.0,0.00032767,120]
[357633513,1744262249250,-1000.0,0.00032822,120]
[357633514,1744262249274,-500.0,0.00032876,120]
[357633515,1744262249297,-500.0,0.00032876,120]
[357633516,1744262249321,-500.0,0.00032876,120]
[357633517,1744262249345,-500.0,0.00032876,120]
[357633518,1744262249369,-500.0,0.00032876,120]
[357633519,1744262249392,-500.0,0.00032876,120]
[357633520,1744262249416,-500.0,0.00032876,120]
[357633521,1744262249440,-297.14683636,0.00032876,120]
[357633522,1744262249464,-1500.0,0.00032877,120]
[357633523,1744262249488,-1000.0,0.00032877,120]
[357633524,1744262249512,-2000.0,0.00032932,120]
[357633525,1744262249537,-2000.0,0.00032986,120]
[357633526,1744262249562,-2000.0,0.00033041,120]
[357633527,1744262249586,-2000.0,0.00033096,120]
[357633528,1744262249610,-2000.0,0.00033151,120]
[357633529,1744262249634,-2000.0,0.00033205,120]
[357633530,1744262249658,-2000.0,0.0003326,120]
[357633531,1744262249687,-2000.0,0.00033315,120]
[357633532,1744262249711,-2000.0,0.0003337,120]
[357633533,1744262249737,-2000.0,0.00033425,120]
[357633534,1744262249763,-298.0,0.00034,120]
[357633535,1744262249792,-209.0,0.000352,30]
[357633536,1744262249818,-1000.0,0.00035381,30]
[357633537,1744262249843,-1237.39,0.00035644,30]
[357633538,1744262249868,-200.0,0.00036,120]
[357633539,1744262249893,-199.041011,0.00036498,120]
[357633540,1744262249917,-209.0,0.0003655,30]
[357633541,1744262249942,-155.041011,0.00036798,120]
[357633542,1744262249968,-199.041011,0.00037198,120]
[357633543,1744262249992,-203.24071976,0.000372,103]
[357633544,1744262250018,-500.0,0.00037388,120]
[357633545,1744262250042,-500.0,0.00037388,120]
[357633546,1744262250067,-500.0,0.00037388,120]
[357633547,1744262250095,-151.041009,0.00037498,120]
[357633548,1744262250119,-377.2182405,0.000375,31]
[357633549,1744262250148,-152.0,0.00037656,30]
[357633550,1744262250174,-199.041011,0.00037798,120]
[357633551,1744262250198,-209.0,0.0003789,30]
[357633552,1744262250222,-150.87456836,0.00038,30]
[357633553,1744262250246,-192.0,0.00038,30]
[357633554,1744262250270,-200.0,0.00038,120]
[357633555,1744262250294,-510.60381512,0.00038,120]
[357633556,1744262250318,-188.72994938,0.00038,120]
[357633557,1744262250342,-152.0,0.00038004,31]
[357633558,1744262250367,-151.041009,0.00038198,120]
[357633559,1744262250393,-594.19245098,0.00038244,30]
[357633560,1744262250419,-152.0,0.00038352,32]
[357633561,1744262250452,-319.98279236,0.00038356,30]
[357633562,1744262250499,-500.0,0.00038356,120]
[357633563,1744262250760,-1495.36480699,0.00038356,120]
[357633564,1744262250789,-199.041011,0.00038498,120]
[357633565,1744262250812,-5018.36202662,0.0003856,30]
[357633566,1744262250856,-500.0,0.0003863,120]
[357633567,1744262250912,-152.0,0.000387,33]
[357633568,1744262250938,-151.041006,0.00038798,120]
[357633569,1744262250979,-500.0,0.00038904,120]
[357633570,1744262251037,-1286.52,0.00039,31]
[357633571,1744262251071,-1286.52,0.00039,31]
[357633572,1744262251102,-1286.52,0.00039,31]
[357633573,1744262251132,-1286.52,0.00039,31]
[357633574,1744262251159,-1286.52,0.00039,31]
[357633575,1744262251185,-1286.52,0.00039,31]
[357633576,1744262251212,-1286.52,0.00039,31]
[357633577,1744262251240,-1286.52,0.00039,31]
[357633578,1744262251266,-1286.52,0.00039,31]
[357633579,1744262251293,-1286.52,0.00039,31]
[357633580,1744262251319,-1286.52,0.00039,31]
[357633581,1744262251345,-1286.52,0.00039,31]
[357633582,1744262251369,-152.0,0.00039048,34]
[357633583,1744262251407,-500.0,0.00039178,120]
[357633584,1744262251456,-199.041011,0.00039198,120]
[357633585,1744262251480,-209.0,0.0003924,30]
[357633586,1744262251504,-152.0,0.00039396,35]
[357633587,1744262251539,-500.0,0.00039452,120]
[357633588,1744262251585,-519.88921978,0.00039452,30]
[357633589,1744262251610,-151.041006,0.00039498,120]
[357633590,1744262251635,-1117.8278475,0.000396,120]
[357633591,1744262251658,-519.88921978,0.00039616,30]
[357633592,1744262251693,-562.6701963,0.00039726,120]
[357633593,1744262251738,-152.0,0.00039744,36]
[357633594,1744262251764,-519.88921978,0.00039781,30]
[357633595,1744262251789,-199.041011,0.00039798,120]
[357633596,1744262251814,-519.88921978,0.00039945,30]
[357633597,1744262251838,-2000.0,0.0004,30]
[357633598,1744262251862,-999.0,0.0004,120]
[357633599,1744262251886,-3000.0,0.0004,30]
[357633600,1744262251912,-200.0,0.0004,120]
[357633601,1744262251937,-504.00202443,0.0004,120]
[357633602,1744262251963,-510.60381512,0.0004,120]
[357633603,1744262251989,-188.72994938,0.0004,120]
[357633604,1744262252024,-1000.0,0.0004,30]
[357633605,1744262252067,-152.0,0.00040092,37]
[357633606,1744262252096,-519.88921978,0.0004011,30]
[357633607,1744262252122,-500.0,0.00040129,120]
[357633608,1744262252149,-500.0,0.00040129,120]
[357633609,1744262252173,-157.041006,0.00040198,120]
[357633610,1744262252197,-519.88921978,0.00040247,30]
[357633611,1744262252247,-519.88921978,0.00040411,30]
[357633612,1744262252271,-152.0,0.0004044,38]
[357633613,1744262252296,-199.041011,0.00040498,120]
[357633614,1744262252321,-1237.39,0.00040534,30]
[357633615,1744262252371,-519.88921978,0.00040575,30]
[357633616,1744262252396,-209.0,0.0004058,30]
[357633617,1744262252420,-407.022116,0.00040629,120]